bitfinex-derivatives/quotes_SOLF0:USTF0_20241218
["timestamp","ask_amount","ask_price","bid_price","bid_amount"]
[1734566094503,2.427,206.1,206.09,3.7]
[1734566097501,2.4269,206.11,206.09,3.7]
[1734566097705,1.6167,206.2,206.1,11.30137022]
[1734566098607,2.4268,206.12,206.1,11.30137022]
[1734566099503,2.4267,206.13,206.1,11.30137022]
[1734566101607,2.4268,206.12,206.1,11.30137022]
[1734566101810,11.30137022,206.19,206.09,3.7]
[1734566102011,1.5184,206.19,206.09,3.7]
[1734566102308,1.5184,206.19,206.11,2.4268]
[1734566102610,3.7,206.35,206.17,11.30137022]
[1734566102805,135.3262961,206.32,206.21,11.30137022]
[1734566103313,135.3262961,206.32,206.21,15.00137022]
[1734566103513,135.3262961,206.32,206.21,11.30137022]
[1734566103814,2.4254,206.24,206.21,11.30137022]
[1734566104011,11.30137022,206.31,206.19,3.7]
[1734566104312,5.9223447,206.3,206.18,11.30137022]
[1734566104509,11.30137022,206.28,206.16,3.7]
[1734566104711,11.30137022,206.25,206.11,3.7]
[1734566104911,2.4269,206.11,206.1,6.70576326]
[1734566105215,2.4269,206.11,206.1,4.27296326]
[1734566105515,2.427,206.1,206.09,20.11728979]
[1734566105719,11.30137022,206.13,206.02,26.85676302]
[1734566106015,2.4278,206.03,206.02,26.85676302]
[1734566106414,2.4278,206.03,206.02,14.69326302]
[1734566106613,6.0078,206.03,206.02,10.07326302]
[1734566106820,3.58,206.03,205.96,165.85369945]
[1734566107113,2.4291,205.92,205.91,53.64610612]
[1734566108316,18.13471668,205.92,205.81,3.0995]
[1734566108919,18.13471668,205.88,205.74,53.64610612]
[1734566109119,4.46434358,205.87,205.74,53.64610612]
[1734566109319,2.4309,205.77,205.69,3.1591]
[1734566109512,18.13471668,205.84,205.69,3.1591]
[1734566110120,18.13471668,205.88,205.7,3.58]
[1734566110420,4.46437776,205.87,205.7,3.58]
[1734566110719,3.58,205.87,205.7,3.58]
[1734566110913,0.8843164,205.86,205.7,3.58]
[1734566111420,2.4306,205.8,205.7,3.58]
[1734566112421,2.4306,205.8,205.7,6.0116]
[1734566113027,3.58,205.86,205.7,3.58]
[1734566113324,5.73021339,205.92,205.69,3.1591]
[1734566113325,18.13471668,205.84,205.69,3.1591]
[1734566113522,3.8,205.83,205.69,3.1591]
[1734566113819,0.88405261,205.82,205.69,3.1591]
[1734566114023,0.88404027,205.82,205.69,3.1591]
[1734566114222,18.13471668,205.8,205.69,3.1591]
[1734566114925,2.431,205.76,205.69,3.1591]
[1734566115521,3.8,205.83,205.69,3.1591]
[1734566115823,18.13471668,205.8,205.69,3.1591]
[1734566116224,2.4318,205.7,205.67,1.5959]
[1734566116821,2.432,205.68,205.63,1.5399]
[1734566117024,3.8,205.77,205.63,1.5399]
[1734566117326,2.4317,205.7,205.63,1.5399]
[1734566117527,3.8,205.77,205.63,1.5399]
[1734566117719,5.84104068,205.79,205.63,1.5399]
[1734566117922,3.8,205.78,205.63,1.5399]
[1734566118423,18.13471668,205.83,205.65,18.13471668]
[1734566118622,18.13471668,205.83,205.63,1.5399]
[1734566118623,63.59281923,205.88,205.7,18.13471668]
[1734566118819,0.88460506,205.87,205.71,3.8]
[1734566119123,5.78358984,205.84,205.71,3.8]
[1734566119319,5.78358984,205.84,205.72,1.4762]
[1734566119529,2.4307,205.79,205.72,1.4762]
[1734566119827,5.78358984,205.84,205.73,1.5528]
[1734566120028,2.4301,205.84,205.75,2.4311]
[1734566120231,2.4301,205.84,205.74,19.61141668]
[1734566120427,45.45810255,205.88,205.74,19.61141668]
[1734566120626,2.4302,205.83,205.75,2.4311]
[1734566120825,0.20962,205.89,205.74,19.61141668]
[1734566121026,0.20962,205.89,205.78,18.13471668]
[1734566121332,0.20962,205.89,205.83,2.4301]
[1734566121631,0.20962,205.89,205.84,1.4724]
[1734566121931,0.20962,205.89,205.79,3.8]
[1734566122131,2.4302,205.83,205.79,3.8]
[1734566122327,0.20962,205.89,205.78,18.13471668]
[1734566122528,0.20962,205.89,205.75,1.4724]
[1734566122727,2.4309,205.77,205.75,1.4724]
[1734566123228,0.20962,205.89,205.75,1.4724]
[1734566123424,0.20962,205.89,205.8,18.13471668]
[1734566123628,2.4298,205.87,205.8,21.93471668]
[1734566123929,0.20962,205.89,205.8,21.93471668]
[1734566124327,2.4296,205.88,205.8,21.93471668]
[1734566124631,0.20962,205.89,205.8,21.93471668]
[1734566125432,2.4303,205.82,205.8,3.8]
[1734566125628,0.20962,205.89,205.8,3.8]
[1734566126635,2.4301,205.83,205.8,3.8]
[1734566127029,0.20962,205.89,205.8,3.8]
[1734566127335,0.20962,205.89,205.8,21.93471668]
[1734566128731,0.20962,205.89,205.8,3.8]
[1734566129937,2.4299,205.85,205.8,3.8]
[1734566130138,0.20962,205.89,205.8,3.8]
[1734566131034,0.20962,205.89,205.82,18.13471668]
[1734566132029,0.20962,205.89,205.85,2.4299]
[1734566132233,0.20962,205.89,205.86,6.8598]
[1734566132936,0.20962,205.89,205.86,3.0598]
[1734566133535,2.4296,205.88,205.86,3.0598]
[1734566133735,5.79624133,205.95,205.86,3.0598]
[1734566133931,2.4292,205.92,205.86,5.4896]
[1734566134234,5.79624133,205.95,205.86,3.0598]
[1734566134534,2.4291,205.93,205.86,3.0598]
[1734566134738,5.79624133,205.95,205.86,3.0598]
[1734566136338,3.8,206.01,205.87,2.4296]
[1734566136537,3.8,206.03,205.87,1.5502]
[1734566136837,5.80676146,205.96,205.87,1.5502]
[1734566137133,2.4293,205.91,205.87,1.5502]
[1734566137534,5.80676146,205.96,205.87,1.5502]
[1734566138239,3.8,206.03,205.88,18.13471668]
[1734566138636,1.619,206.04,205.92,18.13471668]
[1734566138835,18.13471668,206.08,205.95,2.4287]
[1734566139137,3.8,206.09,205.96,3.0413]
[1734566139342,2.4279,206.02,205.97,2.4285]
[1734566139741,3.8,206.09,205.96,21.17601668]
[1734566139945,2.4279,206.03,205.98,2.4283]
[1734566140535,1.5837,206.11,205.97,1.6103]
[1734566140741,4.0056,206.15,206.0,18.13471668]
[1734566140937,3.8,206.15,206.01,3.8]
[1734566141441,2.4271,206.09,206.01,3.8]
[1734566141643,3.8,206.15,206.01,3.8]
[1734566141837,1.5837,206.19,206.05,2.4276]
[1734566142032,0.88514102,206.18,206.05,2.4276]
[1734566142237,1.5837,206.19,206.05,2.4276]
[1734566142437,1.5837,206.19,206.04,18.13471668]
[1734566142838,21.93471668,206.2,206.04,18.13471668]
[1734566143142,45.38434792,206.22,206.12,18.13471668]
[1734566143340,2.4256,206.22,206.16,2.4262]
[1734566143533,5.69794049,206.25,206.16,18.13471668]
[1734566144641,19.64821668,206.31,206.17,2.4261]
[1734566145240,2.4254,206.24,206.17,2.4261]
[1734566145537,19.64821668,206.31,206.16,18.13471668]
[1734566145843,2.4255,206.23,206.16,18.13471668]
[1734566146239,5.73078481,206.26,206.17,3.84]
[1734566146443,5.73078481,206.26,206.16,21.97471668]
[1734566147445,2.4253,206.25,206.18,2.426]
[1734566147744,5.73078481,206.26,206.16,21.97471668]
[1734566148134,2.4254,206.23,206.16,21.97471668]
[1734566148339,5.73078481,206.26,206.16,21.97471668]
[1734566149138,2.4256,206.22,206.16,21.97471668]
[1734566149340,5.73078481,206.26,206.16,21.97471668]
[1734566149837,2.4256,206.22,206.16,24.40091668]
[1734566150040,5.73078481,206.26,206.17,3.84]
[1734566152438,5.73078481,206.26,206.16,18.13471668]
[1734566152737,1.5135,206.31,206.16,18.13471668]
[1734566152942,5.76218752,206.27,206.16,18.13471668]
[1734566153941,2.4256,206.22,206.16,18.13471668]
[1734566154242,5.76218752,206.27,206.16,18.13471668]
[1734566154444,3.84,206.37,206.2,18.13471668]
[1734566154749,2.4252,206.25,206.21,3.84]
[1734566155342,5.78989989,206.29,206.21,3.84]
[1734566156739,2.4252,206.26,206.21,3.84]
[1734566156938,5.7823314,206.32,206.21,3.84]
[1734566157139,1.8084,206.39,206.24,18.13471668]
[1734566157338,2.4245,206.32,206.28,18.13471668]
[1734566157541,2.4245,206.32,206.29,3.84]
[1734566157747,2.4245,206.32,206.3,3.84]
[1734566157940,18.13471668,206.44,206.3,3.84]
[1734566158137,0.88502116,206.43,206.3,3.84]
[1734566158443,2.38852116,206.43,206.3,3.84]
[1734566158647,5.71284674,206.37,206.3,3.84]
[1734566158946,2.4246,206.3,206.27,21.97471668]
[1734566159347,1.5035,206.43,206.27,21.97471668]
[1734566159548,0.8850636,206.42,206.33,18.13471668]
[1734566159750,1.5035,206.43,206.33,21.97471668]
[1734566160140,5.83216754,206.4,206.33,21.97471668]
[1734566160540,5.83216754,206.4,206.33,3.84]
[1734566161450,2.4241,206.34,206.33,3.84]
[1734566164549,2.4247,206.3,206.28,3.84]
[1734566164850,5.83216754,206.4,206.25,1.5345]
[1734566165148,18.13471668,206.38,206.25,1.5345]
[1734566165342,2.4251,206.26,206.25,1.5345]
[1734566165849,2.4257,206.21,206.2,0.26229]
[1734566166245,1.5578,206.33,206.2,0.26229]
[1734566167244,18.13471668,206.38,206.22,18.13471668]
[1734566167445,2.4247,206.3,206.24,2.4252]
[1734566167752,5.83216754,206.4,206.26,18.13471668]
[1734566167942,5.83216754,206.4,206.27,1.5899]
[1734566168147,2.4239,206.37,206.28,2.4249]
[1734566168450,5.83216754,206.4,206.27,1.5899]
[1734566168451,5.83216754,206.4,206.3,18.13471668]
[1734566168650,2.4238,206.38,206.31,3.84]
[1734566168852,5.83216754,206.4,206.31,3.84]
[1734566169550,3.84,206.44,206.31,3.84]
[1734566169752,2.424,206.36,206.31,3.84]
[1734566170149,3.84,206.44,206.31,3.84]
[1734566170450,2.4244,206.32,206.31,3.84]
[1734566171453,2.4242,206.34,206.31,3.84]
[1734566173355,5.82169059,206.41,206.31,3.84]
[1734566173554,5.82169059,206.41,206.31,21.97471668]
[1734566174153,2.4243,206.33,206.31,21.97471668]
[1734566174757,5.82169059,206.41,206.31,21.97471668]
[1734566174958,5.82169059,206.41,206.28,3.76]
[1734566175755,2.4243,206.34,206.29,2.4247]
[1734566175956,5.82169059,206.41,206.29,2.4247]
[1734566176953,2.4242,206.34,206.29,2.4247]
[1734566177158,5.82169059,206.41,206.29,2.4247]
[1734566177354,5.82169059,206.41,206.28,3.76]
[1734566178057,2.4241,206.34,206.3,2.4246]
[1734566179253,2.4238,206.38,206.29,2.4247]
[1734566179556,5.82169059,206.41,206.29,2.4247]
[1734566179955,2.4243,206.34,206.29,2.4247]
[1734566180150,5.82169059,206.41,206.29,2.4247]
[1734566180553,2.4244,206.32,206.29,2.4247]
[1734566180858,5.82169059,206.41,206.29,2.4247]
[1734566181059,5.82169059,206.41,206.28,3.76]
[1734566181361,5.82169059,206.41,206.25,5.82929096]
[1734566181362,18.13471668,206.38,206.24,1.5146]
[1734566181558,3.075,206.37,206.24,1.5146]
[1734566181760,2.4253,206.24,206.23,1.481]
[1734566181955,2.4253,206.24,206.21,1.5862]
[1734566182858,3.2724,206.37,206.21,1.5862]
[1734566182859,2.4256,206.22,206.21,1.5862]
[1734566183462,3.2724,206.37,206.21,1.5862]
[1734566183761,2.4255,206.23,206.21,1.5862]
[1734566183960,3.075,206.37,206.21,4.0118]
[1734566184153,2.4245,206.32,206.29,18.13471668]
[1734566184354,18.13471668,206.46,206.29,21.89471668]
[1734566184553,86.11323204,206.41,206.29,24.31941668]
[1734566184758,86.11323204,206.41,206.29,21.89471668]
[1734566184959,86.11323204,206.41,206.3,1.5739]
[1734566185359,5.82169059,206.41,206.3,1.5739]
[1734566185964,2.4241,206.35,206.3,1.5739]
[1734566186165,5.82169059,206.41,206.3,1.5739]
[1734566186564,2.4244,206.32,206.3,1.5739]
[1734566186865,5.82169059,206.41,206.3,1.5739]
[1734566187067,2.4245,206.31,206.3,1.5739]
[1734566190468,2.4245,206.31,206.29,3.76]
[1734566190868,5.82169059,206.41,206.29,3.76]
[1734566191067,5.82169059,206.41,206.26,1.4638]
[1734566191068,4.00415935,206.4,206.26,1.4638]
[1734566191375,0.88535935,206.39,206.25,3.76]
[1734566192070,0.88535935,206.39,206.24,3.76]
[1734566192267,0.88535935,206.39,206.24,2.4253]
[1734566192472,0.88553004,206.38,206.24,6.1853]
[1734566192662,0.88553004,206.37,206.24,6.1853]
[1734566192864,0.88553004,206.36,206.24,6.1853]
[1734566193169,83.61094145,206.4,206.24,3.76]
[1734566193370,0.88551829,206.39,206.25,1.6081]
[1734566193671,0.88551829,206.39,206.27,20.55971668]
[1734566193972,2.4245,206.32,206.27,20.55971668]
[1734566194570,2.4245,206.31,206.27,20.55971668]
[1734566196174,2.4245,206.31,206.27,18.13471668]
[1734566197274,2.4247,206.3,206.27,18.13471668]
[1734566198083,3.1188,206.4,206.26,1.5615]
[1734566198269,0.88540895,206.39,206.25,5.3681]
[1734566199268,2.425,206.28,206.25,5.3681]
[1734566199675,3.1188,206.4,206.25,5.3681]
[1734566199876,0.88543097,206.39,206.25,7.7932]
[1734566200278,0.88543097,206.39,206.26,2.425]
[1734566200279,2.4241,206.35,206.26,2.425]
[1734566200478,3.1188,206.4,206.26,2.425]
[1734566200877,2.4246,206.31,206.26,2.425]
[1734566201984,2.4246,206.31,206.27,2.425]
[1734566202284,2.4246,206.31,206.27,20.55971668]
[1734566202785,2.4246,206.31,206.28,2.4248]
[1734566203487,2.4246,206.3,206.27,20.55961668]
[1734566204380,2.4246,206.3,206.27,18.13471668]
[1734566204584,2.4243,206.33,206.27,18.13471668]
[1734566205085,5.82169059,206.41,206.31,20.55921668]
[1734566205283,2.4241,206.35,206.32,1.5923]
[1734566205683,5.82169059,206.41,206.32,4.0167]
[1734566206483,2.4239,206.36,206.32,4.0167]
[1734566206683,3.0225,206.46,206.35,20.55871668]
[1734566206884,83.83154145,206.49,206.35,20.55871668]
[1734566207286,0.88514636,206.45,206.35,20.55871668]
[1734566208186,18.13471668,206.5,206.35,20.55871668]
[1734566208377,18.13471668,206.5,206.34,1.5892]
[1734566208378,0.88501168,206.49,206.38,18.13471668]
[1734566208583,5.80922465,206.48,206.39,3.54]
[1734566208986,2.4232,206.43,206.39,3.54]
[1734566209593,5.80922465,206.48,206.41,2.4233]
[1734566209594,2.4226,206.48,206.41,2.4233]
[1734566209889,3.2,206.51,206.41,2.4233]
[1734566210080,0.88493839,206.5,206.41,2.4233]
[1734566210892,2.4228,206.46,206.4,2.4234]
[1734566211289,2.4228,206.46,206.41,1.469]
[1734566211991,5.74966344,206.5,206.41,1.469]
[1734566212493,2.4229,206.46,206.41,1.469]
[1734566212994,5.74966344,206.5,206.41,1.469]
[1734566213495,2.4229,206.45,206.41,1.469]
[1734566215796,2.423,206.44,206.41,1.469]
[1734566217093,11.27009082,206.53,206.41,1.469]
[1734566217890,2.4228,206.46,206.41,3.8923]
[1734566218290,2.4227,206.46,206.41,3.8922]
[1734566218690,5.71538052,206.52,206.41,1.469]
[1734566218885,11.27009082,206.53,206.41,1.469]
[1734566219386,2.4227,206.47,206.41,3.8922]
[1734566219593,11.27009082,206.53,206.41,3.8922]
[1734566219995,2.4227,206.47,206.43,11.27009082]
[1734566220895,2.4221,206.52,206.43,11.27009082]
[1734566221088,45.31706074,206.55,206.43,11.27009082]
[1734566221493,0.88476084,206.54,206.43,11.27009082]
[1734566221793,2.4226,206.47,206.43,11.27009082]
[1734566222001,5.86689865,206.53,206.41,1.469]
[1734566222389,45.31706074,206.55,206.43,11.27009082]
[1734566222596,45.31706074,206.55,206.46,11.27009082]
[1734566222797,11.27009082,206.61,206.46,14.81009082]
[1734566222998,2.4222,206.51,206.46,17.23279082]
[1734566223199,11.27009082,206.61,206.49,11.27009082]
[1734566223393,0.88459749,206.6,206.49,11.27009082]
[1734566223597,2.4218,206.55,206.5,2.4222]
[1734566223797,5.90181735,206.6,206.49,11.27009082]
[1734566224095,5.90181735,206.6,206.52,11.27009082]
[1734566224292,2.4214,206.57,206.53,3.54]
[1734566224497,3.0977,206.63,206.53,3.54]
[1734566224695,0.88444288,206.62,206.53,3.54]
[1734566225091,2.4217,206.56,206.53,3.54]
[1734566225301,3.0977,206.63,206.53,3.54]
[1734566225504,0.88448682,206.62,206.53,3.54]
[1734566225691,2.422,206.52,206.51,3.54]
[1734566225997,11.27009082,206.58,206.46,11.27009082]
[1734566226194,2.4229,206.45,206.43,11.27009082]
[1734566226396,11.27009082,206.55,206.43,11.27009082]
[1734566226900,11.27009082,206.52,206.42,3.54]
[1734566227098,2.4786732,206.51,206.42,3.54]
[1734566227295,1.5938,206.51,206.42,3.54]
[1734566227501,2.4231,206.43,206.42,3.54]
[1734566228702,14.6,206.71,206.42,3.54]
[1734566228902,15.36504348,206.6,206.47,11.27009082]
[1734566229096,2.4216,206.56,206.47,11.27009082]
[1734566229297,0.88475266,206.55,206.47,11.27009082]
[1734566229506,14.48029082,206.6,206.47,11.27009082]
[1734566229801,2.4225,206.48,206.47,11.27009082]
[1734566230002,14.48029082,206.6,206.47,11.27009082]
[1734566230203,0.88471243,206.59,206.47,11.27009082]
[1734566230402,2.4224,206.5,206.47,11.27009082]
[1734566230604,14.48029082,206.6,206.47,11.27009082]
[1734566230803,0.88473036,206.59,206.47,11.27009082]
[1734566230999,2.4224,206.5,206.47,11.27009082]
[1734566231206,14.48029082,206.6,206.47,11.27009082]
[1734566231404,0.88471542,206.59,206.47,11.27009082]
[1734566232505,2.4224,206.49,206.47,11.27009082]
[1734566232999,2.4225,206.48,206.47,11.27009082]
[1734566234903,80.29154145,206.64,206.47,11.27009082]
[1734566235105,80.29154145,206.64,206.55,11.27009082]
[1734566235304,0.88444167,206.63,206.55,11.27009082]
[1734566235810,0.88444167,206.62,206.55,11.27009082]
[1734566236005,1.4843,206.66,206.55,11.27009082]
[1734566236206,0.88435509,206.65,206.55,11.27009082]
[1734566236708,5.72194117,206.62,206.55,11.27009082]
[1734566237804,2.4216,206.56,206.55,11.27009082]
[1734566238009,5.72194117,206.62,206.53,3.5]
[1734566238213,5.72194117,206.62,206.52,11.27009082]
[1734566238412,2.4218,206.54,206.52,11.27009082]
[1734566239209,16.99203199,206.62,206.49,11.27009082]
[1734566239409,20.49203199,206.62,206.49,11.27009082]
[1734566239620,2.4223,206.5,206.49,11.27009082]
[1734566239909,11.27009082,206.59,206.47,3.5]
[1734566240213,2.4225,206.48,206.47,3.5]
[1734566240405,2.4225,206.48,206.46,11.27009082]
[1734566242109,2.4226,206.47,206.46,11.27009082]
[1734566242306,11.27009082,206.59,206.46,11.27009082]
[1734566242513,0.88464676,206.58,206.49,11.27009082]
[1734566242711,6.616,206.6,206.49,11.27009082]
[1734566243013,0.8846348,206.59,206.49,11.27009082]
[1734566243312,0.88463134,206.58,206.46,11.27009082]
[1734566243814,1.5704,206.57,206.46,11.27009082]
[1734566244007,2.4226,206.48,206.46,11.27009082]
[1734566245208,5.72194117,206.62,206.46,11.27009082]
[1734566245423,1.6027,206.61,206.5,11.27009082]
[1734566245608,1.6027,206.61,206.53,11.27009082]
[1734566245813,2.4217,206.56,206.53,11.27009082]
[1734566246012,1.6027,206.61,206.53,11.27009082]
[1734566246314,2.4217,206.55,206.53,11.27009082]
[1734566246808,1.6027,206.61,206.53,11.27009082]
[1734566247012,2.4218,206.54,206.53,11.27009082]
[1734566247711,2.4222,206.51,206.5,11.27009082]
[1734566247912,1.6027,206.61,206.47,14.77009082]
[1734566248112,11.27009082,206.6,206.47,14.77009082]
[1734566248813,1.6027,206.61,206.47,14.77009082]
[1734566249012,2.422,206.53,206.5,11.27009082]
[1734566249215,1.6027,206.61,206.5,11.27009082]
[1734566249714,1.6027,206.61,206.53,11.27009082]
[1734566250012,1.6027,206.61,206.53,14.77009082]
[1734566250906,2.4217,206.55,206.53,14.77009082]
[1734566251516,1.6027,206.61,206.53,14.77009082]
[1734566252919,2.4218,206.54,206.53,11.27009082]
[1734566253116,1.6027,206.61,206.5,14.77009082]
[1734566253317,15.65458784,206.6,206.47,11.27009082]
[1734566253516,0.88449702,206.59,206.45,3.5]
[1734566253818,11.27009082,206.57,206.45,3.5]
[1734566254114,2.4227,206.47,206.44,12.75549082]
[1734566254413,11.27009082,206.57,206.44,12.75549082]
[1734566254619,2.4228,206.46,206.44,12.75549082]
[1734566254918,11.27009082,206.57,206.44,11.27009082]
[1734566255214,0.88477006,206.56,206.44,11.27009082]
[1734566255418,11.27009082,206.53,206.39,3.0054]
[1734566255619,4.384887,206.52,206.39,3.0054]
[1734566255922,2.4232,206.42,206.39,3.0054]
[1734566256120,4.9633,206.52,206.39,3.0054]
[1734566256321,0.88488374,206.51,206.39,3.0054]
[1734566257021,2.4233,206.41,206.39,3.0054]
[1734566259020,2.4232,206.42,206.39,3.0054]
[1734566259316,1.4633,206.52,206.39,21.0412566]
[1734566259623,2.423,206.44,206.39,21.0412566]
[1734566259818,1.4633,206.52,206.39,21.0412566]
[1734566260019,0.8848483,206.51,206.39,21.0412566]
[1734566260321,1.4633,206.52,206.39,21.0412566]
[1734566261019,5.82731302,206.5,206.39,21.0412566]
[1734566261322,5.82731302,206.5,206.39,3.0054]
[1734566262218,0.88493239,206.49,206.39,3.0054]
[1734566262423,2.4234,206.4,206.39,3.0054]
[1734566266341,2.4234,206.4,206.39,1.5345]
[1734566272570,3.46,206.42,206.3,0.31451]
[1734566272737,3.46,206.41,206.3,0.31451]
[1734566273233,2.4245,206.32,206.3,0.31451]
[1734566273629,3.46,206.41,206.3,0.31451]
[1734566273824,3.46,206.45,206.3,0.31451]
[1734566274030,46.83741642,206.49,206.35,18.0358566]
[1734566274325,0.88503768,206.48,206.36,3.0717]
[1734566274730,1.5184,206.49,206.36,3.0717]
[1734566275035,0.88505817,206.48,206.36,3.0717]
[1734566275733,2.4238,206.37,206.36,3.0717]
[1734566276736,2.4238,206.37,206.36,1.5633]
[1734566277940,2.4237,206.39,206.36,1.5633]
[1734566278442,8.3051,206.48,206.36,1.5633]
[1734566278640,2.4237,206.38,206.36,1.5633]
[1734566279140,2.4238,206.37,206.36,1.5633]
[1734566279744,8.3051,206.48,206.36,1.5633]
[1734566279938,0.88506219,206.47,206.36,1.5633]
[1734566280241,19.57958269,206.48,206.36,1.5633]
[1734566280442,2.4238,206.37,206.36,1.5633]
[1734566280636,11.27448269,206.45,206.33,1.608]
[1734566280835,19.57958269,206.48,206.34,11.27448269]
[1734566281037,2.4231,206.44,206.34,11.27448269]
[1734566281243,17.10179571,206.5,206.37,11.27448269]
[1734566281443,0.88500302,206.49,206.37,11.27448269]
[1734566281743,11.27448269,206.53,206.41,2.4233]
[1734566281945,3.46,206.53,206.43,11.27448269]
[1734566282145,2.4226,206.48,206.43,11.27448269]
[1734566282348,1.5131,206.55,206.46,11.27448269]
[1734566283243,7.23246945,206.55,206.46,11.27448269]
[1734566283443,7.23246945,206.55,206.44,5.8829]
[1734566283848,45.30568968,206.56,206.46,11.27448269]
[1734566284649,11.27448269,206.59,206.48,2.4225]
[1734566285043,17.11902698,206.59,206.48,2.4225]
[1734566285238,17.11902698,206.59,206.49,11.27448269]
[1734566285542,2.4218,206.54,206.49,11.27448269]
[1734566285847,17.11902698,206.59,206.49,11.27448269]
[1734566286047,2.422,206.53,206.49,11.27448269]
[1734566286449,17.11902698,206.59,206.46,11.27448269]
[1734566287251,17.11902698,206.59,206.47,2.4226]
[1734566287647,80.29154145,206.7,206.56,11.27448269]
[1734566287841,80.29154145,206.7,206.5,11.27448269]
[1734566287842,0.88422935,206.67,206.59,11.27448269]
[1734566288041,80.29154145,206.7,206.62,11.27448269]
[1734566288246,80.29154145,206.7,206.63,3.46]
[1734566288450,2.4201,206.69,206.63,6.6187]
[1734566288851,2.4201,206.68,206.63,6.6187]
[1734566289045,80.29154145,206.7,206.63,6.6187]
[1734566289350,80.29154145,206.7,206.65,11.27448269]
[1734566289551,132.1860961,206.72,206.65,11.27448269]
[1734566289746,5.77661973,206.77,206.64,11.27448269]
[1734566289952,5.77661973,206.77,206.65,3.4]
[1734566290451,5.77661973,206.77,206.64,11.27448269]
[1734566290751,5.77661973,206.77,206.65,3.4]
[1734566290952,5.77661973,206.77,206.66,3.4]
[1734566291547,5.77661973,206.77,206.67,14.67448269]
[1734566292551,11.27448269,206.78,206.67,14.67448269]
[1734566292751,2.9539,206.79,206.67,14.67448269]
[1734566292954,2.4194,206.75,206.7,11.27448269]
[1734566293147,1.4618,206.79,206.7,11.27448269]
[1734566293350,7.27887664,206.79,206.7,11.27448269]
[1734566293549,1.4618,206.79,206.7,11.27448269]
[1734566294354,1.4618,206.79,206.71,3.4]
[1734566294757,1.4618,206.79,206.7,11.27448269]
[1734566294953,1.4618,206.79,206.7,14.67448269]
[1734566295151,2.4198,206.71,206.7,3.4]
[1734566296054,2.4198,206.71,206.67,11.27448269]
[1734566296253,2.4198,206.71,206.68,3.4]
[1734566296451,2.4198,206.71,206.69,3.38]
[1734566296958,2.4199,206.7,206.69,3.38]
[1734566297253,11.27448269,206.78,206.67,11.27448269]
[1734566297457,2.42,206.69,206.68,3.38]
[1734566298056,2.4203,206.67,206.66,3.38]
[1734566298358,2.4203,206.67,206.64,11.27448269]
[1734566298555,2.4203,206.67,206.65,3.38]
[1734566299056,11.27448269,206.75,206.65,3.38]
[1734566299358,12.87028269,206.78,206.65,3.38]
[1734566299559,2.4202,206.68,206.65,3.38]
[1734566300354,11.27448269,206.78,206.67,11.27448269]
[1734566300657,1.4618,206.79,206.7,11.27448269]
[1734566301057,1.4618,206.79,206.71,3.38]
[1734566301858,2.4197,206.72,206.71,3.38]
[1734566302062,1.4618,206.79,206.68,3.38]
[1734566302362,2.4199,206.7,206.69,3.38]
[1734566302853,12.73628269,206.79,206.67,14.65448269]
[1734566303055,2.4201,206.69,206.67,14.65448269]
[1734566304059,0.88385084,206.78,206.67,14.65448269]
[1734566304259,0.88382898,206.77,206.67,3.38]
[1734566304558,2.4202,206.68,206.67,3.38]
[1734566306160,2.4203,206.67,206.66,3.38]
[1734566311356,2.4205,206.66,206.64,11.27448269]
[1734566311561,2.4205,206.66,206.65,3.38]
[1734566313366,2.4205,206.66,206.64,11.27448269]
[1734566313367,2.4205,206.65,206.64,11.27448269]
[1734566313567,2.4205,206.65,206.64,14.65448269]
[1734566318667,4.8381,206.78,206.64,14.65448269]
[1734566318966,0.88391331,206.77,206.64,14.65448269]
[1734566319463,2.4205,206.66,206.64,14.65448269]
[1734566319971,1.74829999,206.66,206.64,14.65448269]
[1734566320360,4.8381,206.78,206.64,14.65448269]
[1734566320563,1.4618,206.79,206.68,11.27448269]